Cogmind - Beta 16.1 @@@ ROGUE MODE // 2026.04.05 @ 04:19:18 Player: KURIIRI Result: Destroyed by BG-0CU(R) with Subdweller Shrapnel Launcher Performance ------------- Evolutions (0) 0 Regions Visited (2) 400 Robots Destroyed (24) 120 Value Destroyed (504) 504 Prototype IDs (3) 60 Alien Tech Used (0) 0 Bonus (0) 0 TOTAL SCORE: 1084 Bonus ------- None Cogmind --------- Core Integrity 0/250 Matter 290/300 Energy 164/200 System Corruption 0% Temperature Cool (0) Movement Rolling (120) Ox1 Location -10/Subcaves Parts ------- > --- POWER (1) -------- Subdweller Power Source > --- PROPULSION (2) --- Subdweller Monowheel > --- UTILITY (2) ------ Large Storage Unit Improved Targeting Computer > --- WEAPON (2) ------- Subdweller Laser Subdweller Laser > --- INVENTORY (15) --- Ion Engine Light Ion Engine Huge Storage Unit High-capacity Matter Pod (200) High-capacity Matter Pod (140) Improved Terrain Scanner Assault Rifle Improved Assault Rifle Improved Assault Rifle Improved Assault Rifle Improved Assault Rifle Rocket Launcher Rocket Launcher Peak State ------------ > --- POWER ------------ Light Ion Engine > --- PROPULSION ------- Light Treads Light Treads > --- UTILITY ---------- Large Storage Unit Improved Terrain Scanner > --- WEAPON ----------- Improved Assault Rifle Improved Assault Rifle > --- INVENTORY -------- Ion Engine Light Ion Engine Wheel Compact Wheel High-capacity Matter Pod High-capacity Matter Pod Assault Rifle Improved Assault Rifle [Rating: 14] Favorites ----------- Power Light Ion Engine Engine Light Ion Engine Propulsion Light Treads Treads Light Treads Leg Aluminum Leg Wheel Wheel Utility Large Storage Unit Device Improved Terrain Scanner Storage Large Storage Unit Processor Improved Targeting Computer Weapon Improved Assault Rifle Energy Gun Medium Laser Ballistic Gun Improved Assault Rifle Build | -11 -10 -10 ------- Run | Yrd Mat Sub Slots Evolved . | . . . Power . | . . . Propulsion . | . . . Utility . | . . . Weapon . | . . . Parts Attached 20 | 3 6 11 Power 2 | . 1 1 Engine 2 | . 1 1 Core . | . . . Reactor . | . . . Propulsion 6 | 2 . 4 Treads 2 | 2 . . Leg . | . . . Wheel 4 | . . 4 Hover . | . . . Flight . | . . . Utility 3 | 1 2 . Device 1 | 1 . . Storage 1 | . 1 . Processor 1 | . 1 . Hackware . | . . . Protection . | . . . Artifact . | . . . Weapon 9 | . 3 6 Energy Gun 3 | . . 3 Energy Cannon . | . . . Ballistic Gun 6 | . 3 3 Ballistic Cannon . | . . . Launcher . | . . . Special Weapon . | . . . Impact Weapon . | . . . Slashing Weapon . | . . . Piercing Weapon . | . . . Special Melee Weapon . | . . . Unidentified Prototypes 1 | . 1 . Parts Lost 8 | . . 8 Power 1 | . . 1 Propulsion 5 | . . 5 Utility . | . . . Weapon 2 | . . 2 Highest Loss Streak 2 | . . 2 To Critical Strikes . | . . . Average Backups 10 | 6 8 12 Power 1 | 1 1 2 Propulsion 1 | 4 2 1 Utility 3 | . 2 4 Weapon 3 | 1 2 5 Tool/Special . | . . . Unused Backups 11 | . 3 8 Power 2 | . . 2 Propulsion . | . . . Utility 5 | . 2 3 Weapon 4 | . 1 3 Tool/Special . | . . . Average Slot Usage (%) 94 | . 100 89 Engine 12 | . 14 10 Treads 22 | . 28 16 Wheel 2 | . . 5 Device 3 | . 6 . Storage 14 | . 14 14 Processor 10 | . 7 14 Energy Gun 5 | . 6 3 Ballistic Gun 22 | . 21 22 Peak Build Rating 14 | 9 14 14 Average Rating 12 | 7 11 12 On Entrance 9 | 6 9 14 Avg Prop Armor Cover (%) 4 | . . 4 Naked Turns . | . . . Heaviest Build 33 | 13 30 33 Greatest Support 40 | 40 40 40 Greatest Overweight (x) 10 | . . 10 Average Overweight (x) . | . . . Largest Inventory Capacity 15 | 8 15 15 Average Capacity 14 | 8 14 15 Most Carried 14 | 6 13 14 Average Carried 10 | 5 9 12 Final Capacity 15 | 8 15 15 Final Carried 13 | 4 13 13 Class Distribution -------------------- 100% | Mutant Dominant Class ---------------- Mutant | -10/Materials Mutant | -10/Subcaves Resources | -11 -10 -10 ----------- Run | Yrd Mat Sub Matter Collected 951 | 222 372 357 Remotely . | . . . Salvage Created 743 | 77 447 219 Parts 61 | 6 42 13 Haulers Intercepted 1 | . 1 . Recyclers Shooed 1 | . 1 . Parts Field Recycled . | . . . Retrieved Matter . | . . . Parts Self-Destructed 10 | . . 10 Prevented . | . . . Parts Restored . | . . . Kills | -11 -10 -10 ------- Run | Yrd Mat Sub Combat Hostiles Destroyed 16 | . 10 6 Guns 16 | . 10 6 Classes Destroyed 8 | 2 5 1 Worker 2 | . 2 . Tunneler 1 | 1 . . Hauler 1 | . 1 . Recycler 2 | 1 1 . Watcher 2 | . 2 . Swarmer 6 | . 6 . Grunt 4 | . 4 . Subdweller 6 | . . 6 Best Kill Streak 4 | 2 4 1 Combat Bots Only 3 | . 3 1 Max Kills in Single Turn 2 | 1 2 1 Gunslinging 1 | . 1 . Exploded . | . . . Melee . | . . . Uniques/NPCs Destroyed . | . . . Combat | -11 -10 -10 -------- Run | Yrd Mat Sub Hostile Shots Fired 115 | . 67 48 Missed 38 | . 24 14 Hits 77 | . 43 34 Projectile 77 | . 43 34 AOE 3 | . . 3 Damage Taken 1216 | . 438 778 Core 260 | . 57 203 Absorbed by Shields . | . . . Core Remaining (%) 100 | 100 . . Volleys Fired 77 | 4 40 33 Largest 2 | 2 2 2 Hottest 120 | 70 70 120 Shots Fired 153 | 8 80 65 Gun 153 | 8 80 65 Cannon . | . . . Launcher . | . . . Special . | . . . Kinetic 86 | 4 40 42 Thermal 67 | 4 40 23 Explosive . | . . . Electromagnetic . | . . . Robot Hit Streak 33 | 2 10 33 Robot Miss Streak 3 | 3 3 1 Penetration Max . | . . . Secondary Targets 2 | . 2 . Max Gunslinging Chain 1 | . 1 . Shots Hit Robots 106 | 4 47 55 Core Hits 39 | 3 24 12 Critical Kills . | . . . Critical Parts Destroyed 2 | . 2 . Critical Strikes 2 | . 2 . Destroy 2 | . 2 . Melee Attacks . | . . . Impact . | . . . Slashing . | . . . Piercing . | . . . Sneak Attacks . | . . . Combat Hostiles . | . . . Follow-up Attacks . | . . . Damage Inflicted 1617 | 51 624 942 Guns 1617 | 51 624 942 Cannons . | . . . Explosions . | . . . Melee . | . . . Ramming . | . . . Kinetic 939 | 13 324 602 Thermal 678 | 38 300 340 Explosive . | . . . Electromagnetic . | . . . Impact . | . . . Slashing . | . . . Piercing . | . . . Highest Corruption . | . . . Average Corruption . | . . . Corruption Purged . | . . . Corruption Blocked . | . . . Overload Shots . | . . . Overflow Damage . | . . . Projectiles . | . . . Explosions . | . . . Melee . | . . . Knockbacks . | . . . Impact . | . . . Kinetic . | . . . Secondary . | . . . Self-Inflicted Damage . | . . . Shots . | . . . Rammed . | . . . Targets Rammed . | . . . Kicked . | . . . Crushed . | . . . Highest Temperature 156 | 36 156 . Average Temperature 34 | 19 36 . Received Heat Transfer 273 | . 105 168 Siege Activations . | . . . Martial Activations . | . . . Shielding Activations . | . . . Robots Disrupted . | . . . Combat Hostiles . | . . . Robots Corrupted . | . . . Combat Hostiles . | . . . Parts Fried . | . . . Impact Corruptions . | . . . Robots Melted . | . . . Combat Hostiles . | . . . Parts Melted 1 | . 1 . Heat Transferred 1424 | 111 888 425 Parts Sabotaged . | . . . Parts Stolen . | . . . Parts Stripped . | . . . Power Chain Reactions . | . . . Alert | -11 -10 -10 ------- Run | Yrd Mat Sub Maximum Alert Level . | . . . Low Security (%) 100 | 100 100 . Level 1 . | . . . Level 2 . | . . . Level 3 . | . . . Level 4 . | . . . Level 5 . | . . . High Security . | . . . Max Security . | . . . Peak Influence 157 | 10 157 . Initial . | . . . Average 49 | 3 50 . Influence Increases 423 | 10 383 30 Destroy 0b10 Robot/C 200 | . 200 . Destroy 0b10 Robot/NC 40 | 10 30 . Destroy Leader 56 | . 56 . Successful Hack 37 | . 37 . Select Force Hacks 60 | . 60 . Lose Combat Pursuer 30 | . . 30 Influence Decreases 423 | 10 383 30 Time Decay 413 | 10 383 20 Lost Part 10 | . . 10 Squads Dispatched 2 | . 2 . Investigation 2 | . 2 . Extermination . | . . . Reinforcement . | . . . Assault . | . . . Garrison . | . . . Intercept . | . . . Searches Triggered . | . . . Construction Impeded . | . . . Haulers Reinforced . | . . . Active Scanning Responses . | . . . Cargo Convoy Interrupts . | . . . Stealth | -11 -10 -10 --------- Run | Yrd Mat Sub Distress Signals . | . . . Communications Jammed . | . . . Distress Signals . | . . . Times Spotted 21 | . 12 9 Peak Tracking Total 3 | . 3 2 Tactical Retreats 1 | . . 1 Traps | -11 -10 -10 ------- Run | Yrd Mat Sub Traps Triggered 1 | . 1 . Indirectly . | . . . Trap Hack Attempts . | . . . Triggered . | . . . Disarmed . | . . . Reprogrammed . | . . . Reused . | . . . Traps Extracted . | . . . Installed . | . . . Triggered . | . . . Machines | -11 -10 -10 ---------- Run | Yrd Mat Sub Machines Disabled . | . . . Max in Single Turn . | . . . Machines Repaired . | . . . Machines Dismantled . | . . . Machines Sabotaged . | . . . Overloaded Fab Kills . | . . . Hacking | -11 -10 -10 --------- Run | Yrd Mat Sub Machines Accessed 10 | . 9 1 Terminals 7 | . 7 . Fabricators . | . . . Repair Stations . | . . . Recycling Units 2 | . 2 . Scanalyzers . | . . . Garrison Access . | . . . Total Hacks 35 | . 30 5 Successful 22 | . 17 5 Failed 12 | . 12 . Catastrophic 2 | . 2 . Database Lockouts 1 | . 1 . Manual 26 | . 26 . Terminals 28 | . 28 . Fabricators . | . . . Repair Stations . | . . . Recycling Units 2 | . 2 . Scanalyzers . | . . . Garrison Access . | . . . Terminal Hacks 11 | . 6 5 Record 5 | . . 5 Robot Analysis 2 | . 2 . Prototype ID Bank 1 | . 1 . Locate Traps 2 | . 2 . Zone Layout 1 | . 1 . Fabricator Hacks . | . . . Repair Station Hacks . | . . . Recycling Unit Hacks . | . . . Scanalyzer . | . . . Garrison Access Hacks . | . . . Unauthorized Hacks 11 | . 11 . Terminals 9 | . 9 . Botnet 3 | . 3 . Operators 1 | . 1 . Skim 5 | . 5 . Fabricators . | . . . Repair Stations . | . . . Recycling Units 2 | . 2 . Tunnel 2 | . 2 . Scanalyzers . | . . . Garrison Access . | . . . Data Cores Recovered . | . . . Used . | . . . Hacking Detections 7 | . 7 . Full Trace Events . | . . . Feedback Events . | . . . Feedback Blocked . | . . . Robot Schematics Acquired . | . . . Robots Built . | . . . Authchips . | . . . Time . | . . . Total Robot Build Rating . | . . . Part Schematics Acquired . | . . . Parts Built . | . . . Authchips . | . . . Time . | . . . Total Part Build Rating . | . . . Part Studies Acquired . | . . . Parts Repaired . | . . . Time . | . . . Parts Recycled . | . . . Recycled Matter . | . . . Retrieved Matter . | . . . Retrieved Components . | . . . Parts Scanalyzed . | . . . Part Schematics Acquired . | . . . Parts Damaged . | . . . Bothacking | -11 -10 -10 ------------ Run | Yrd Mat Sub Used RIF Installer . | . . . Robots Hacked . | . . . Non-combat . | . . . Combat . | . . . Robot Hacks Applied . | . . . Relay Couplers Released . | . . . Fabnet Peak Effective % . | . . . Robots Rewired . | . . . Allies Hacked . | . . . Hacks Repelled . | . . . Allies | -11 -10 -10 -------- Run | Yrd Mat Sub Total Allies . | . . . Largest Group . | . . . Highest-Rated Group . | . . . Highest-Rated Ally . | . . . Total Orders . | . . . Ally Attacks . | . . . Total Damage . | . . . Kills . | . . . Allies Corrupted . | . . . Allies Melted . | . . . Intel | -11 -10 -10 ------- Run | Yrd Mat Sub Active Infowar (turns) 575 | 17 558 . Terrain 575 | 17 558 . Robot Analysis Total 2 | . 2 . Derelict Logs Recovered 1 | . . 1 Drone Launches . | . . . Drone Recoveries . | . . . Exploration | -11 -10 -10 ------------- Run | Yrd Mat Sub Turns Passed 2553 | 34 1227 1292 Spaces Moved 1289 | 15 549 725 Core 7 | . . 7 Treads 1014 | 1 549 464 Legs 14 | 14 . . Wheels 254 | . . 254 Hover . | . . . Flight . | . . . Fastest Speed 105 | 120 160 105 Average Speed 152 | 122 160 147 Slowest Speed 550 | 160 160 550 Overloaded Moves . | . . . Propulsion Burnouts . | . . . Robots Hopped . | . . . Potential Cave-ins . | . . . Cave-ins Triggered . | . . . Exploration Rate (%) 44 | 2 85 47 Regions Visited 2 Branch Regions 1 Pre-discovered Areas 3 | . 2 1 Known Exits Taken . | . . . Unknown Exits Taken 2 | 1 1 . Scrap Searched . | . . . Spaces Dug . | . . . Terrain Destroyed . | . . . Melee . | . . . Projectile . | . . . AOE . | . . . Terrain Rammed . | . . . Walls Destroyed . | . . . Machines Disabled . | . . . Actions | -11 -10 -10 --------- Run | Yrd Mat Sub Total 1720 | 23 816 881 Wait 317 | . 212 105 Move 1287 | 14 548 725 Hop . | . . . Pick Up 8 | . 7 1 Fast Attach 10 | 1 2 7 Attach 7 | 2 . 5 Detach 5 | . 1 4 Swap 4 | . 4 . Drop 5 | 2 2 1 Fire 77 | 4 40 33 Melee . | . . . Ram . | . . . Kick . | . . . Crush . | . . . Escape Stasis . | . . . Rewire . | . . . Trap . | . . . Miscellaneous . | . . . Route ------- -11/Scrapyard -10/Materials (discovered 6 exits: [*Mat x3] / [*Min x2] / *Sub) -10/Subcaves (discovered 1 exit: [*Mat]) History --------- Turn | Location | Event 14 | -11/Scrapyard | Discovered new exit (range 3) 35 | -11/Scrapyard | Entered Materials 310 | -10/Materials | Build established: Mutant 356 | -10/Materials | Discovered new exit (range 9) 372 | -10/Materials | Discovered new exit (range 13) 471 | -10/Materials | Central database locked down 503 | -10/Materials | Discovered new exit (range 6) 551 | -10/Materials | Discovered new exit (range 5) 660 | -10/Materials | Discovered new exit (range 10) 694 | -10/Materials | Learned Storage terminal intel 742 | -10/Materials | Learned Storage stockpile data 781 | -10/Materials | Learned location of 1 exit from Storage 811 | -10/Materials | Learned location of 2 exits from Mines 831 | -10/Materials | Learned location of 1 exit from Recycling 852 | -10/Materials | Discovered new exit (range 12) 903 | -10/Materials | Learned location of 1 exit from Storage 1262 | -10/Materials | Entered Subcaves 1361 | -10/Subcaves | Visited Clippyterm 1366 | -10/Subcaves | Learned location of Deep Caves (-7) 1366 | -10/Subcaves | Learned Research security intel 1454 | -10/Subcaves | Learned Materials interactive machine intel 1539 | -10/Subcaves | A swath of the cavern ceiling suddenly collapsed 2076 | -10/Subcaves | Core integrity fell below 50% 2405 | -10/Subcaves | Shifting Twisted Machinery released Humpback 2444 | -10/Subcaves | Shifting Twisted Machinery released Sub. Power Source 2489 | -10/Subcaves | Discovered new exit (range 15) 2545 | -10/Subcaves | Core integrity fell below 20% 2554 | -10/Subcaves | Destroyed by BG-0CU(R) with Subdweller Shrapnel Launcher Last Messages --------------- 02345_ Acquired Sub. Power Source. 02356_ Acquired 9 matter. 02368_ Acquired 10 matter. 02378_ Sub. Machine Gun destroyed. 02378_ Wheel destroyed. 02384_ DX-3HU(R) destroyed. Humpback falls loose from the Twisted Machinery. 02415_ Acquired 44 matter. 02426_ Acquired Sub. Monowheel. Sub. Power Source falls loose from the Twisted Machinery. 02454_ Acquired Sub. Laser. 02462_ Subatomizers dissect the Disposable Heat Sink. 02489_ EXIT=FOUND 02512_ Acquired 8 matter. 02514_ Acquired 4 matter. 02518_ Acquired 17 matter. 02521_ Acquired Sub. Laser. 02544_ BG-0CU(R): "WEHOME!" Map ----- +----------------------------------------------------+ | ?????????????????????????????????????????????????? | | ?????????????????????????????????????????????????? | | ?????????????????????????????????????????????????? | | ?????????????????????????????????????????????????? | | ?????????????????????????????????????????????????? | | ?????????????????????????????????????????????????? | | ?????????????????????????????????????????????????? | | ??????????????????????## ????????????????????????? | | ???????????????????? ????????????????????????? | | ????????????????? ????????????????????????? | | ???????????????#?# ????????????????????????? | | ?????????????? ## ????????????????????????? | | ??????????????? ????????????????????????? | | ???????????????? ????????????????????????? | | ????????????????# #???????????????????????? | | ????????????????# #???????????????????????? | | ???????????????## #???????????????????????? | | ???????????????? #???????????????????????? | | ????????????????? ####????????????????????? | | ??????????????????? ;;;##???????????????????? | | ????????????????????#; ;#???????????????????? | | ???????????????????##; ;#???????????????????? | | ???????????????????#; ;#???????????????????? | | ???????????????#####; ;###?????????????????? | | ???????????????# #?????????????????? | | ??????????????# R@ #?????????????????? | | ??????????????# #; #; ##?????????????????? | | ??????????????####?#### ?## #?????? ??????????? | | ??????????????????????# ??## ##???? #??????????? | | ?????????????????????? ??## #???# #??????????? | | ?????????????????????? ??# #??? #??????????? | | ?????????????????????% #??# ##?? #???????????? | | ????????????????????? ??## ##??# #???????????? | | ????????????????????? ??# ##??#" ##??????????? | | ???????????????????? ??# "#### """ ##?????????? | | ????????????????????# ??# ! """ #?????????? | | ????????????????????? ???# ""#??????????? | | ?????????????????????????#" ##??????????? | | ?????????????????????????#" ##???????????? | | ?????????????????????????#" [ #????????????? | | ?????????????????????????#" "" #????????????? | | ?????????????????????????## "" ##????????????? | | ?????????????????????????# "######?????????????? | | ????????????????????????## #??????????????????? | | ????????????????????????# #??????????????????? | | ????????????????????????# #??????????????????? | | ????????????????????????# < #??????????????????? | | ????????????????????????## ##??????????????????? | | ?????????????????????????## #??????????????????? | | ??????????????????????????# #??????????????????? | +----------------------------------------------------+ Best States ------------- Heat Dissipation 25 Energy Generation 15 Energy Capacity 200 Matter Stores 300 Matter Capacity 300 Sight Range 16 Terrain Scan Range 16 Terrain Scan Density 10 Evasion (%) 45 Targeting Accuracy 6 Recoil Reduction 2 Item Schematics ----------------- None Robot Schematics ------------------ None Fabricated ------------ Nothing Repaired ---------- Nothing Studied --------- None Alien Tech Used ----------------- None Achievements -------------- None Challenges ------------ None Game ------ Seed BraceLauncherBasin Manual? 0 Play Time 00:12:37 Cumulative 388.1 hours Start 2026.04.05 @ 04:08:33 End 2026.04.05 @ 04:19:18 Sessions 1 Manual Loads 0 Difficulty Rogue Special Mode None Game No. 326 Rogue 290 Adventurer 36 Explorer 0 Win Type - Total 5 Types 2/0/0/1/0/0/0/2/0/0 Lore% 73 Gallery% 66 Achievement% 55 Wizard Run 0 Options --------- Layout 1 ASCII 0 Keyboard 0 Movement Numpad Keybinds 0 Fullscreen 1 Font 48/Smallcaps Map View 50x35 Zoom Use 0% Tactical HUD 1 Map Filters NONE Filters NONE Steam 1 RUN: a63a75f9-ac60-4d6e-8064-bb937101c010